[Event "Titled Tuesday Blitz April 11 Early 2023"]
[White "ajedrez-facil"]
[Black "babbilator"]
[WhiteElo "2124"]
[BlackElo "2248"]
[Result "0-1"]
[Round "08"]
[TimeControl "180+2"]
[Date "2023.04.11"]
[WhiteClock "0:00:03"]
[BlackClock "0:00:15"]

1. e4 {[%clk 0:03:00]}  c5 {[%clk 0:02:59]} 2. Nf3 {[%clk 0:03:01]}  e6 {[%clk 0:03:00]} 3. d4 {[%clk 0:02:59]}  cxd4 {[%clk 0:03:00]} 4. Nxd4 {[%clk 0:03:00]}  Nc6 {[%clk 0:03:01]} 5. Nc3 {[%clk 0:02:53]}  Qc7 {[%clk 0:03:00]} 6. Be2 {[%clk 0:02:50]}  Nf6 {[%clk 0:02:57]} 7. O-O {[%clk 0:02:50]}  d6 {[%clk 0:02:52]} 8. Bg5 {[%clk 0:02:43]}  a6 {[%clk 0:02:24]} 9. Kh1 {[%clk 0:02:31]}  Be7 {[%clk 0:02:20]} 10. f4 {[%clk 0:02:30]}  O-O {[%clk 0:02:14]} 11. f5 {[%clk 0:02:00]}  Bd7 {[%clk 0:02:02]} 12. Qd2 {[%clk 0:01:17]}  Ne5 {[%clk 0:01:51]} 13. Rad1 {[%clk 0:01:06]}  Rac8 {[%clk 0:01:50]} 14. Bf3 {[%clk 0:00:55]}  Nc4 {[%clk 0:01:46]} 15. Qc1 {[%clk 0:00:51]}  Nxb2 {[%clk 0:01:30]} 16. Qxb2 {[%clk 0:00:50]}  Qxc3 {[%clk 0:01:27]} 17. Qxb7 {[%clk 0:00:48]}  Rb8 {[%clk 0:01:17]} 18. Qxa6 {[%clk 0:00:47]}  e5 {[%clk 0:01:15]} 19. Nb3 {[%clk 0:00:19]}  Bb5 {[%clk 0:01:06]} 20. Qa5 {[%clk 0:00:19]}  Qxa5 {[%clk 0:01:02]} 21. Nxa5 {[%clk 0:00:20]}  Bxf1 {[%clk 0:00:59]} 22. Rxf1 {[%clk 0:00:21]}  Rfc8 {[%clk 0:00:51]} 23. Rc1 {[%clk 0:00:14]}  Ra8 {[%clk 0:00:50]} 24. Nb3 {[%clk 0:00:10]}  Rxa2 {[%clk 0:00:49]} 25. Bd1 {[%clk 0:00:11]}  Bd8 {[%clk 0:00:45]} 26. Bxf6 {[%clk 0:00:09]}  Bxf6 {[%clk 0:00:44]} 27. Kg1 {[%clk 0:00:10]}  Bg5 {[%clk 0:00:42]} 28. Rb1 {[%clk 0:00:10]}  h6 {[%clk 0:00:37]} 29. g3 {[%clk 0:00:09]}  Rc4 {[%clk 0:00:33]} 30. h4 {[%clk 0:00:06]}  Be3+ {[%clk 0:00:32]} 31. Kf1 {[%clk 0:00:05]}  Rxe4 {[%clk 0:00:32]} 32. Ke2 {[%clk 0:00:06]}  Bb6+ {[%clk 0:00:27]} 33. Kd3 {[%clk 0:00:06]}  Re1 {[%clk 0:00:24]} 34. Nd2 {[%clk 0:00:05]}  Bc5 {[%clk 0:00:19]} 35. Ne4 {[%clk 0:00:04]}  Ra3+ {[%clk 0:00:16]} 36. Kd2 {[%clk 0:00:03]}  Rxe4 {[%clk 0:00:15]} 0-1


[Site "https://www.chess.com"]

[Event "Titled Tuesday Blitz April 11 Early 2023"]
[White "Tarnowska, Aleksandra"]
[Black "Rosh Jain"]
[WhiteFideId "1180967"]
[BlackFideId "25789465"]
[WhiteElo "1776"]
[BlackElo "2233"]
[Result "1-0"]
[Round "08"]
[TimeControl "180+2"]
[Date "2023.04.11"]
[WhiteClock "0:00:36"]
[BlackClock "0:00:18"]

1. e4 {[%clk 0:03:00]}  c5 {[%clk 0:02:32]} 2. Nf3 {[%clk 0:02:59]}  d6 {[%clk 0:02:32]} 3. Bb5+ {[%clk 0:02:56]}  Nd7 {[%clk 0:02:30]} 4. O-O {[%clk 0:02:56]}  f6 {[%clk 0:02:28]} 5. d4 {[%clk 0:02:42]}  cxd4 {[%clk 0:02:27]} 6. Nxd4 {[%clk 0:02:41]}  Qb6 {[%clk 0:01:52]} 7. Nc3 {[%clk 0:02:13]}  a6 {[%clk 0:01:49]} 8. Nd5 {[%clk 0:02:10]}  Qa5 {[%clk 0:01:37]} 9. b4 {[%clk 0:01:42]}  Qd8 {[%clk 0:01:20]} 10. Ne6 {[%clk 0:01:41]}  axb5 {[%clk 0:01:19]} 11. Ndc7+ {[%clk 0:01:35]}  Qxc7 {[%clk 0:01:17]} 12. Nxc7+ {[%clk 0:01:36]}  Kd8 {[%clk 0:01:17]} 13. Nxa8 {[%clk 0:01:34]}  e6 {[%clk 0:01:16]} 14. Be3 {[%clk 0:01:33]}  Be7 {[%clk 0:01:14]} 15. Bb6+ {[%clk 0:01:29]}  Ke8 {[%clk 0:01:13]} 16. Nc7+ {[%clk 0:01:26]}  Kf7 {[%clk 0:01:13]} 17. Nxb5 {[%clk 0:01:27]}  Nxb6 {[%clk 0:01:09]} 18. Nxd6+ {[%clk 0:01:25]}  Bxd6 {[%clk 0:01:02]} 19. Qxd6 {[%clk 0:01:26]}  Nd7 {[%clk 0:01:01]} 20. Rad1 {[%clk 0:01:11]}  Ne7 {[%clk 0:01:01]} 21. Qc7 {[%clk 0:01:09]}  Ne5 {[%clk 0:00:56]} 22. Rd8 {[%clk 0:01:05]}  Rxd8 {[%clk 0:00:45]} 23. Qxd8 {[%clk 0:01:06]}  b5 {[%clk 0:00:31]} 24. c3 {[%clk 0:00:53]}  Bb7 {[%clk 0:00:30]} 25. f3 {[%clk 0:00:52]}  Bc6 {[%clk 0:00:25]} 26. Rd1 {[%clk 0:00:50]}  Nc4 {[%clk 0:00:25]} 27. Qc7 {[%clk 0:00:43]}  e5 {[%clk 0:00:20]} 28. Rd8 {[%clk 0:00:41]}  Ke6 {[%clk 0:00:19]} 29. Rd6+ {[%clk 0:00:37]}  Kf7 {[%clk 0:00:19]} 30. Rxc6 {[%clk 0:00:37]}  Ke8 {[%clk 0:00:18]} 31. Re6 {[%clk 0:00:37]}  Kf8 {[%clk 0:00:17]} 32. Qxe7+ {[%clk 0:00:36]}  Kg8 {[%clk 0:00:18]} 33. Qe8# {[%clk 0:00:36]} 1-0


[Site "https://www.chess.com"]

[Event "Titled Tuesday Blitz April 11 Early 2023"]
[White "Nugumanov, Bakhtiyar"]
[Black "Winkels, Marcel"]
[WhiteFideId "13701797"]
[BlackFideId "1003887"]
[WhiteElo "2209"]
[BlackElo "1900"]
[Result "1-0"]
[Round "08"]
[TimeControl "180+2"]
[Date "2023.04.11"]
[WhiteClock "0:02:17"]
[BlackClock "0:00:57"]

1. Nf3 {[%clk 0:03:00]}  Nf6 {[%clk 0:02:58]} 2. c4 {[%clk 0:03:00]}  g6 {[%clk 0:02:57]} 3. g3 {[%clk 0:03:00]}  Bg7 {[%clk 0:02:57]} 4. Bg2 {[%clk 0:03:01]}  O-O {[%clk 0:02:57]} 5. O-O {[%clk 0:03:02]}  d5 {[%clk 0:02:57]} 6. cxd5 {[%clk 0:03:02]}  Nxd5 {[%clk 0:02:56]} 7. Nc3 {[%clk 0:03:03]}  Nb6 {[%clk 0:02:54]} 8. d4 {[%clk 0:03:01]}  Nc6 {[%clk 0:02:54]} 9. d5 {[%clk 0:03:02]}  Na5 {[%clk 0:02:53]} 10. e4 {[%clk 0:03:02]}  c6 {[%clk 0:02:53]} 11. Bf4 {[%clk 0:03:03]}  cxd5 {[%clk 0:02:39]} 12. Nxd5 {[%clk 0:03:02]}  Nxd5 {[%clk 0:02:30]} 13. exd5 {[%clk 0:03:00]}  Bxb2 {[%clk 0:02:30]} 14. Rb1 {[%clk 0:03:01]}  Bg7 {[%clk 0:02:27]} 15. Rc1 {[%clk 0:03:00]}  Bf5 {[%clk 0:02:23]} 16. Bc7 {[%clk 0:02:59]}  Qd7 {[%clk 0:02:06]} 17. Bxa5 {[%clk 0:02:59]}  b6 {[%clk 0:02:00]} 18. Bc3 {[%clk 0:02:55]}  Rfd8 {[%clk 0:01:53]} 19. Bxg7 {[%clk 0:02:54]}  Kxg7 {[%clk 0:01:53]} 20. Nd4 {[%clk 0:02:54]}  Bg4 {[%clk 0:01:49]} 21. Qb3 {[%clk 0:02:52]}  Rac8 {[%clk 0:01:40]} 22. Nc6 {[%clk 0:02:52]}  Re8 {[%clk 0:01:34]} 23. Ne5 {[%clk 0:02:45]}  Qf5 {[%clk 0:01:30]} 24. Nxg4 {[%clk 0:02:43]}  Qxg4 {[%clk 0:01:29]} 25. Qb2+ {[%clk 0:02:36]}  f6 {[%clk 0:01:26]} 26. h3 {[%clk 0:02:31]}  Qd7 {[%clk 0:01:25]} 27. Rfe1 {[%clk 0:02:28]}  Qd6 {[%clk 0:01:23]} 28. Bf3 {[%clk 0:02:21]}  h5 {[%clk 0:01:21]} 29. h4 {[%clk 0:02:20]}  Kh6 {[%clk 0:01:14]} 30. Re6 {[%clk 0:02:20]}  Qd7 {[%clk 0:01:13]} 31. Qd2+ {[%clk 0:02:18]}  Kg7 {[%clk 0:01:09]} 32. Rce1 {[%clk 0:02:18]}  Rc7 {[%clk 0:01:03]} 33. d6 {[%clk 0:02:18]}  Rcc8 {[%clk 0:00:57]} 34. Rxe7+ {[%clk 0:02:17]} 1-0


[Site "https://www.chess.com"]

[Event "Titled Tuesday Blitz April 11 Early 2023"]
[White "Vargas, Mauricio"]
[Black "Dahlgren, James Allen"]
[WhiteFideId "4404572"]
[BlackFideId "22256873"]
[WhiteElo "1998"]
[BlackElo "2175"]
[Result "0-1"]
[Round "08"]
[TimeControl "180+2"]
[Date "2023.04.11"]
[WhiteClock "0:00:14"]
[BlackClock "0:01:31"]

1. e4 {[%clk 0:02:59]}  e6 {[%clk 0:03:00]} 2. f4 {[%clk 0:02:57]}  c5 {[%clk 0:03:01]} 3. e5 {[%clk 0:02:58]}  d5 {[%clk 0:03:00]} 4. Nf3 {[%clk 0:02:59]}  f5 {[%clk 0:03:01]} 5. exf6 {[%clk 0:02:57]}  Nxf6 {[%clk 0:03:01]} 6. Bb5+ {[%clk 0:02:55]}  Bd7 {[%clk 0:03:00]} 7. Bxd7+ {[%clk 0:02:55]}  Nbxd7 {[%clk 0:03:00]} 8. O-O {[%clk 0:02:55]}  Bd6 {[%clk 0:03:00]} 9. Qe1 {[%clk 0:02:56]}  Qe7 {[%clk 0:02:56]} 10. d3 {[%clk 0:02:54]}  O-O {[%clk 0:02:55]} 11. Ng5 {[%clk 0:02:47]}  Rae8 {[%clk 0:02:53]} 12. Nc3 {[%clk 0:02:42]}  h6 {[%clk 0:02:52]} 13. Nf3 {[%clk 0:02:36]}  e5 {[%clk 0:02:34]} 14. f5 {[%clk 0:02:19]}  Qf7 {[%clk 0:02:23]} 15. Nb5 {[%clk 0:02:11]}  Bb8 {[%clk 0:02:22]} 16. Nh4 {[%clk 0:01:38]}  e4 {[%clk 0:02:11]} 17. Ng6 {[%clk 0:01:36]}  exd3 {[%clk 0:02:06]} 18. Qd1 {[%clk 0:01:28]}  dxc2 {[%clk 0:02:01]} 19. Qxc2 {[%clk 0:01:21]}  Ng4 {[%clk 0:01:47]} 20. Nxf8 {[%clk 0:01:19]}  Bxh2+ {[%clk 0:01:40]} 21. Kh1 {[%clk 0:01:10]}  Qh5 {[%clk 0:01:36]} 22. Rf3 {[%clk 0:00:17]}  Re1+ {[%clk 0:01:31]} 23. Rf1 {[%clk 0:00:14]}  Rxf1# {[%clk 0:01:31]} 0-1


[Site "https://www.chess.com"]

[Event "Titled Tuesday Blitz April 11 Early 2023"]
[White "Zou, Brendan"]
[Black "Cupid, Kevin"]
[WhiteFideId "3221296"]
[BlackFideId "7700512"]
[WhiteElo "1852"]
[BlackElo "2124"]
[Result "0-1"]
[Round "08"]
[TimeControl "180+2"]
[Date "2023.04.11"]
[WhiteClock "0:00:04"]
[BlackClock "0:01:01"]

1. d4 {[%clk 0:03:00]}  Nf6 {[%clk 0:02:59]} 2. Nc3 {[%clk 0:03:01]}  d5 {[%clk 0:02:59]} 3. Bf4 {[%clk 0:03:01]}  Bf5 {[%clk 0:02:59]} 4. f3 {[%clk 0:03:01]}  Bg6 {[%clk 0:02:59]} 5. g4 {[%clk 0:03:01]}  e6 {[%clk 0:02:58]} 6. h4 {[%clk 0:03:01]}  h6 {[%clk 0:02:55]} 7. h5 {[%clk 0:03:02]}  Bh7 {[%clk 0:02:55]} 8. e3 {[%clk 0:03:00]}  a6 {[%clk 0:02:56]} 9. Bd3 {[%clk 0:02:59]}  Bxd3 {[%clk 0:02:55]} 10. Qxd3 {[%clk 0:03:00]}  c5 {[%clk 0:02:56]} 11. dxc5 {[%clk 0:02:56]}  Bxc5 {[%clk 0:02:51]} 12. O-O-O {[%clk 0:02:52]}  Nc6 {[%clk 0:02:44]} 13. a3 {[%clk 0:02:49]}  b5 {[%clk 0:02:37]} 14. Nge2 {[%clk 0:02:41]}  Qb6 {[%clk 0:02:29]} 15. Nd4 {[%clk 0:02:32]}  Rc8 {[%clk 0:02:20]} 16. Nxc6 {[%clk 0:02:14]}  Rxc6 {[%clk 0:02:20]} 17. Be5 {[%clk 0:02:03]}  Bxe3+ {[%clk 0:02:06]} 18. Kb1 {[%clk 0:02:04]}  d4 {[%clk 0:02:00]} 19. Bxf6 {[%clk 0:01:58]}  gxf6 {[%clk 0:01:58]} 20. Ne4 {[%clk 0:01:46]}  Ke7 {[%clk 0:01:58]} 21. Rh2 {[%clk 0:01:39]}  Rd8 {[%clk 0:01:55]} 22. Re2 {[%clk 0:01:16]}  a5 {[%clk 0:01:54]} 23. Nd2 {[%clk 0:00:59]}  Qc5 {[%clk 0:01:49]} 24. Nb3 {[%clk 0:00:50]}  Qb6 {[%clk 0:01:44]} 25. Qe4 {[%clk 0:00:17]}  Rcd6 {[%clk 0:01:30]} 26. Qd3 {[%clk 0:00:14]}  a4 {[%clk 0:01:29]} 27. Nc1 {[%clk 0:00:13]}  b4 {[%clk 0:01:29]} 28. axb4 {[%clk 0:00:11]}  Qxb4 {[%clk 0:01:29]} 29. Qa3 {[%clk 0:00:11]}  Qxa3 {[%clk 0:01:20]} 30. bxa3 {[%clk 0:00:11]}  Rc8 {[%clk 0:01:21]} 31. Nd3 {[%clk 0:00:08]}  Rc3 {[%clk 0:01:20]} 32. Ka2 {[%clk 0:00:08]}  Rdc6 {[%clk 0:01:10]} 33. Nb4 {[%clk 0:00:08]}  R6c4 {[%clk 0:01:10]} 34. Rb1 {[%clk 0:00:06]}  Kd6 {[%clk 0:01:04]} 35. Na6 {[%clk 0:00:04]}  Rxc2+ {[%clk 0:01:03]} 36. Rxc2 {[%clk 0:00:04]}  Rxc2+ {[%clk 0:01:04]} 37. Rb2 {[%clk 0:00:05]}  d3 {[%clk 0:01:00]} 38. Rxc2 {[%clk 0:00:04]}  dxc2 {[%clk 0:01:01]} 0-1


[Site "https://www.chess.com"]

[Event "Titled Tuesday Blitz April 11 Early 2023"]
[White "Vifleemskaia, Svetlana"]
[Black "Quirke, Jeffrey"]
[WhiteFideId "4129490"]
[BlackFideId "2013029"]
[WhiteElo "1930"]
[BlackElo "2241"]
[Result "1-0"]
[Round "08"]
[TimeControl "180+2"]
[Date "2023.04.11"]
[WhiteClock "0:01:24"]
[BlackClock "0:00:02"]

1. d4 {[%clk 0:03:00]}  Nf6 {[%clk 0:02:52]} 2. c4 {[%clk 0:03:00]}  e6 {[%clk 0:02:51]} 3. Nc3 {[%clk 0:03:01]}  Bb4 {[%clk 0:02:51]} 4. e3 {[%clk 0:03:01]}  O-O {[%clk 0:02:49]} 5. Ne2 {[%clk 0:03:01]}  d5 {[%clk 0:02:47]} 6. a3 {[%clk 0:03:02]}  Be7 {[%clk 0:02:44]} 7. cxd5 {[%clk 0:03:02]}  exd5 {[%clk 0:02:44]} 8. g3 {[%clk 0:03:03]}  c6 {[%clk 0:02:42]} 9. Bg2 {[%clk 0:03:03]}  Re8 {[%clk 0:02:39]} 10. O-O {[%clk 0:03:04]}  Nbd7 {[%clk 0:02:39]} 11. f3 {[%clk 0:03:04]}  c5 {[%clk 0:02:36]} 12. dxc5 {[%clk 0:03:01]}  Nxc5 {[%clk 0:02:32]} 13. Nd4 {[%clk 0:03:01]}  Bf8 {[%clk 0:02:21]} 14. b4 {[%clk 0:03:00]}  Ne6 {[%clk 0:02:19]} 15. Re1 {[%clk 0:02:58]}  g6 {[%clk 0:01:57]} 16. Bb2 {[%clk 0:02:58]}  Bg7 {[%clk 0:01:57]} 17. Rc1 {[%clk 0:02:56]}  Nxd4 {[%clk 0:01:53]} 18. Qxd4 {[%clk 0:02:51]}  Be6 {[%clk 0:01:10]} 19. Qd2 {[%clk 0:02:44]}  Rc8 {[%clk 0:01:03]} 20. Ne2 {[%clk 0:02:43]}  Qd7 {[%clk 0:00:54]} 21. Nd4 {[%clk 0:02:41]}  Red8 {[%clk 0:00:48]} 22. Rxc8 {[%clk 0:02:34]}  Rxc8 {[%clk 0:00:48]} 23. Rc1 {[%clk 0:02:33]}  Rc4 {[%clk 0:00:48]} 24. Nxe6 {[%clk 0:02:31]}  Qxe6 {[%clk 0:00:43]} 25. Rxc4 {[%clk 0:02:23]}  dxc4 {[%clk 0:00:43]} 26. Qd8+ {[%clk 0:02:23]}  Ne8 {[%clk 0:00:38]} 27. Bd4 {[%clk 0:02:22]}  Bxd4 {[%clk 0:00:32]} 28. Qxd4 {[%clk 0:02:20]}  b5 {[%clk 0:00:28]} 29. f4 {[%clk 0:02:20]}  Nd6 {[%clk 0:00:17]} 30. e4 {[%clk 0:02:17]}  Qe7 {[%clk 0:00:12]} 31. Kf2 {[%clk 0:02:15]}  Qc7 {[%clk 0:00:10]} 32. Qc5 {[%clk 0:02:10]}  Qxc5+ {[%clk 0:00:06]} 33. bxc5 {[%clk 0:02:10]}  Nc8 {[%clk 0:00:07]} 34. e5 {[%clk 0:02:06]}  Kf8 {[%clk 0:00:07]} 35. Bb7 {[%clk 0:02:05]}  Ne7 {[%clk 0:00:05]} 36. Ba6 {[%clk 0:02:01]}  c3 {[%clk 0:00:04]} 37. Ke3 {[%clk 0:02:00]}  Nd5+ {[%clk 0:00:03]} 38. Kd3 {[%clk 0:01:59]}  Nc7 {[%clk 0:00:03]} 39. Bb7 {[%clk 0:01:59]}  Ke7 {[%clk 0:00:03]} 40. Kxc3 {[%clk 0:01:58]}  f6 {[%clk 0:00:03]} 41. exf6+ {[%clk 0:01:51]}  Kxf6 {[%clk 0:00:03]} 42. Be4 {[%clk 0:01:49]}  h5 {[%clk 0:00:02]} 43. Kd3 {[%clk 0:01:48]}  g5 {[%clk 0:00:02]} 44. fxg5+ {[%clk 0:01:48]}  Kxg5 {[%clk 0:00:02]} 45. h3 {[%clk 0:01:47]}  h4 {[%clk 0:00:02]} 46. gxh4+ {[%clk 0:01:45]}  Kxh4 {[%clk 0:00:02]} 47. Bf5 {[%clk 0:01:46]}  Kg3 {[%clk 0:00:01]} 48. Kd4 {[%clk 0:01:45]}  a5 {[%clk 0:00:01]} 49. Ke5 {[%clk 0:01:44]}  b4 {[%clk 0:00:01]} 50. axb4 {[%clk 0:01:45]}  axb4 {[%clk 0:00:02]} 51. Kd6 {[%clk 0:01:45]}  Na6 {[%clk 0:00:02]} 52. c6 {[%clk 0:01:44]}  b3 {[%clk 0:00:02]} 53. Bd3 {[%clk 0:01:24]} 1-0


[Site "https://www.chess.com"]

[Event "Titled Tuesday Blitz April 11 Early 2023"]
[White "Burdalev, Kirill"]
[Black "Sanchez, Robert"]
[WhiteFideId "14121913"]
[BlackFideId "2034360"]
[WhiteElo "2236"]
[BlackElo "1990"]
[Result "1-0"]
[Round "08"]
[TimeControl "180+2"]
[Date "2023.04.11"]
[WhiteClock "0:00:22"]
[BlackClock "0:00:09"]

1. d4 {[%clk 0:03:00]}  d5 {[%clk 0:02:58]} 2. c4 {[%clk 0:03:00]}  c6 {[%clk 0:02:58]} 3. Nf3 {[%clk 0:02:57]}  Nf6 {[%clk 0:02:58]} 4. g3 {[%clk 0:02:56]}  Bf5 {[%clk 0:02:49]} 5. Bg2 {[%clk 0:02:55]}  e6 {[%clk 0:02:49]} 6. Nc3 {[%clk 0:02:53]}  Nbd7 {[%clk 0:02:48]} 7. Qb3 {[%clk 0:02:45]}  Qb6 {[%clk 0:02:13]} 8. c5 {[%clk 0:02:43]}  Qa6 {[%clk 0:01:46]} 9. Bf1 {[%clk 0:02:27]}  b5 {[%clk 0:01:42]} 10. a4 {[%clk 0:02:14]}  bxa4 {[%clk 0:01:41]} 11. Rxa4 {[%clk 0:02:13]}  Qc8 {[%clk 0:01:40]} 12. Nh4 {[%clk 0:01:54]}  Bg4 {[%clk 0:01:38]} 13. h3 {[%clk 0:01:51]}  Bh5 {[%clk 0:01:17]} 14. g4 {[%clk 0:01:51]}  Bg6 {[%clk 0:01:16]} 15. Nxg6 {[%clk 0:01:51]}  hxg6 {[%clk 0:01:16]} 16. Bg2 {[%clk 0:01:44]}  e5 {[%clk 0:01:03]} 17. e3 {[%clk 0:01:35]}  Be7 {[%clk 0:00:43]} 18. g5 {[%clk 0:01:13]}  Nh7 {[%clk 0:00:37]} 19. Nxd5 {[%clk 0:01:11]}  cxd5 {[%clk 0:00:33]} 20. Qxd5 {[%clk 0:00:58]}  Rb8 {[%clk 0:00:32]} 21. Rxa7 {[%clk 0:00:55]}  Nxg5 {[%clk 0:00:28]} 22. c6 {[%clk 0:00:25]}  Nf6 {[%clk 0:00:24]} 23. Qxe5 {[%clk 0:00:23]}  Ne6 {[%clk 0:00:19]} 24. c7 {[%clk 0:00:23]}  O-O {[%clk 0:00:09]} 25. cxb8=Q {[%clk 0:00:22]}  Qxb8 {[%clk 0:00:09]} 1-0


[Site "https://www.chess.com"]

[Event "Titled Tuesday Blitz April 11 Early 2023"]
[White "Korobov, Anton"]
[Black "Nakamura, Hikaru"]
[WhiteFideId "14105730"]
[BlackFideId "2016192"]
[WhiteElo "2638"]
[BlackElo "2885"]
[Result "1-0"]
[Round "09"]
[TimeControl "180+2"]
[Date "2023.04.11"]
[WhiteClock "0:00:21"]
[BlackClock "0:00:07"]

1. d4 {[%clk 0:03:00]}  Nf6 {[%clk 0:02:58]} 2. c4 {[%clk 0:03:00]}  e6 {[%clk 0:02:58]} 3. Nf3 {[%clk 0:03:00]}  Bb4+ {[%clk 0:02:58]} 4. Bd2 {[%clk 0:02:57]}  c5 {[%clk 0:02:58]} 5. Bxb4 {[%clk 0:02:53]}  cxb4 {[%clk 0:02:59]} 6. Nbd2 {[%clk 0:02:48]}  d6 {[%clk 0:02:58]} 7. e3 {[%clk 0:02:48]}  O-O {[%clk 0:02:57]} 8. Bd3 {[%clk 0:02:46]}  a5 {[%clk 0:02:56]} 9. O-O {[%clk 0:02:46]}  b6 {[%clk 0:02:56]} 10. Re1 {[%clk 0:02:43]}  Re8 {[%clk 0:02:47]} 11. Qc2 {[%clk 0:02:33]}  Bb7 {[%clk 0:02:45]} 12. e4 {[%clk 0:02:29]}  e5 {[%clk 0:02:45]} 13. Nf1 {[%clk 0:02:27]}  Na6 {[%clk 0:02:38]} 14. Rad1 {[%clk 0:02:24]}  Rc8 {[%clk 0:02:23]} 15. Qb1 {[%clk 0:02:14]}  Qc7 {[%clk 0:02:14]} 16. Ne3 {[%clk 0:02:07]}  exd4 {[%clk 0:02:08]} 17. Nxd4 {[%clk 0:02:01]}  g6 {[%clk 0:01:41]} 18. Nb5 {[%clk 0:01:49]}  Qc5 {[%clk 0:01:34]} 19. Nd5 {[%clk 0:01:39]}  Ng4 {[%clk 0:01:14]} 20. Rd2 {[%clk 0:01:33]}  b3 {[%clk 0:00:52]} 21. axb3 {[%clk 0:01:19]}  Bxd5 {[%clk 0:00:47]} 22. cxd5 {[%clk 0:01:15]}  Nb4 {[%clk 0:00:46]} 23. Bf1 {[%clk 0:01:09]}  Nf6 {[%clk 0:00:37]} 24. Nc3 {[%clk 0:00:57]}  Qc7 {[%clk 0:00:34]} 25. h3 {[%clk 0:00:55]}  h5 {[%clk 0:00:34]} 26. Kh2 {[%clk 0:00:55]}  h4 {[%clk 0:00:33]} 27. Qd1 {[%clk 0:00:52]}  Qe7 {[%clk 0:00:33]} 28. f4 {[%clk 0:00:45]}  Nh5 {[%clk 0:00:31]} 29. Qg4 {[%clk 0:00:45]}  Qf6 {[%clk 0:00:29]} 30. Bb5 {[%clk 0:00:39]}  Red8 {[%clk 0:00:23]} 31. e5 {[%clk 0:00:34]}  Qxf4+ {[%clk 0:00:16]} 32. Qxf4 {[%clk 0:00:34]}  Nxf4 {[%clk 0:00:17]} 33. e6 {[%clk 0:00:35]}  f5 {[%clk 0:00:08]} 34. e7 {[%clk 0:00:30]}  Re8 {[%clk 0:00:08]} 35. Bd7 {[%clk 0:00:26]}  Rb8 {[%clk 0:00:05]} 36. Nb5 {[%clk 0:00:23]}  Nbxd5 {[%clk 0:00:05]} 37. Rxd5 {[%clk 0:00:23]}  Nxd5 {[%clk 0:00:06]} 38. Be6+ {[%clk 0:00:23]}  Kg7 {[%clk 0:00:06]} 39. Bxd5 {[%clk 0:00:24]}  Kf6 {[%clk 0:00:07]} 40. Re6+ {[%clk 0:00:21]}  Kg5 {[%clk 0:00:07]} 41. Nxd6 {[%clk 0:00:21]} 1-0


[Site "https://www.chess.com"]

[Event "Titled Tuesday Blitz April 11 Early 2023"]
[White "Bluebaum, Matthias"]
[Black "Gholami Orimi, Mahdi"]
[WhiteFideId "24651516"]
[BlackFideId "12558486"]
[WhiteElo "2638"]
[BlackElo "2363"]
[Result "1-0"]
[Round "09"]
[TimeControl "180+2"]
[Date "2023.04.11"]
[WhiteClock "0:00:06"]
[BlackClock "0:00:01"]

1. d4 {[%clk 0:03:00]}  Nf6 {[%clk 0:02:59]} 2. c4 {[%clk 0:03:01]}  e6 {[%clk 0:03:00]} 3. Nc3 {[%clk 0:03:02]}  Bb4 {[%clk 0:03:00]} 4. e3 {[%clk 0:03:02]}  c5 {[%clk 0:02:57]} 5. Ne2 {[%clk 0:03:00]}  b6 {[%clk 0:02:54]} 6. a3 {[%clk 0:03:00]}  Ba5 {[%clk 0:02:53]} 7. Rb1 {[%clk 0:03:00]}  Na6 {[%clk 0:02:41]} 8. Ng3 {[%clk 0:03:00]}  Bb7 {[%clk 0:02:40]} 9. f3 {[%clk 0:03:01]}  O-O {[%clk 0:02:40]} 10. Bd3 {[%clk 0:03:01]}  d5 {[%clk 0:02:30]} 11. O-O {[%clk 0:03:01]}  Rc8 {[%clk 0:02:28]} 12. Nb5 {[%clk 0:02:56]}  Qd7 {[%clk 0:01:45]} 13. Nxa7 {[%clk 0:02:28]}  Ra8 {[%clk 0:01:45]} 14. Nb5 {[%clk 0:02:28]}  Rfd8 {[%clk 0:01:46]} 15. Qe2 {[%clk 0:02:23]}  Rac8 {[%clk 0:01:35]} 16. Rd1 {[%clk 0:02:09]}  Qe7 {[%clk 0:01:30]} 17. cxd5 {[%clk 0:01:53]}  exd5 {[%clk 0:01:16]} 18. Na7 {[%clk 0:01:37]}  Ra8 {[%clk 0:01:04]} 19. Bxa6 {[%clk 0:01:35]}  Bxa6 {[%clk 0:01:04]} 20. Qxa6 {[%clk 0:01:34]}  Rxa7 {[%clk 0:01:05]} 21. Qb5 {[%clk 0:01:23]}  c4 {[%clk 0:01:05]} 22. e4 {[%clk 0:01:01]}  dxe4 {[%clk 0:00:57]} 23. Qxc4 {[%clk 0:01:02]}  b5 {[%clk 0:00:46]} 24. Qxb5 {[%clk 0:00:56]}  exf3 {[%clk 0:00:46]} 25. gxf3 {[%clk 0:00:56]}  Rd5 {[%clk 0:00:30]} 26. Qe2 {[%clk 0:00:50]}  Qd8 {[%clk 0:00:26]} 27. Be3 {[%clk 0:00:43]}  Re7 {[%clk 0:00:27]} 28. Qd3 {[%clk 0:00:43]}  Bb6 {[%clk 0:00:26]} 29. Bf2 {[%clk 0:00:43]}  Qd7 {[%clk 0:00:21]} 30. Re1 {[%clk 0:00:37]}  Rxe1+ {[%clk 0:00:17]} 31. Rxe1 {[%clk 0:00:38]}  Bxd4 {[%clk 0:00:17]} 32. Bxd4 {[%clk 0:00:36]}  Rxd4 {[%clk 0:00:18]} 33. Qf5 {[%clk 0:00:37]}  Qd8 {[%clk 0:00:16]} 34. Rc1 {[%clk 0:00:26]}  Rd7 {[%clk 0:00:08]} 35. Qc5 {[%clk 0:00:25]}  Ne8 {[%clk 0:00:05]} 36. b4 {[%clk 0:00:16]}  h6 {[%clk 0:00:04]} 37. b5 {[%clk 0:00:16]}  Rd2 {[%clk 0:00:02]} 38. Qe3 {[%clk 0:00:14]}  Rb2 {[%clk 0:00:02]} 39. Ne4 {[%clk 0:00:12]}  Nf6 {[%clk 0:00:02]} 40. Nxf6+ {[%clk 0:00:11]}  Qxf6 {[%clk 0:00:03]} 41. Rc8+ {[%clk 0:00:05]}  Kh7 {[%clk 0:00:03]} 42. Qd3+ {[%clk 0:00:06]}  g6 {[%clk 0:00:04]} 43. Qd8 {[%clk 0:00:06]}  Rb1+ {[%clk 0:00:04]} 44. Kg2 {[%clk 0:00:07]}  Qb2+ {[%clk 0:00:04]} 45. Kh3 {[%clk 0:00:07]}  Qg7 {[%clk 0:00:05]} 46. a4 {[%clk 0:00:06]}  Rb3 {[%clk 0:00:05]} 47. Qd5 {[%clk 0:00:06]}  Ra3 {[%clk 0:00:02]} 48. Rc7 {[%clk 0:00:06]}  Qg8 {[%clk 0:00:01]} 49. Rxf7+ {[%clk 0:00:06]}  Kh8 {[%clk 0:00:01]} 50. Qe5+ {[%clk 0:00:06]} 1-0


[Site "https://www.chess.com"]